bitfinex/quotes_ETHUSD_20250806
["timestamp","ask_amount","ask_price","bid_price","bid_amount"]
[1754495996763,1.1034,3671.1,3670.9,0.002]
[1754495997256,0.136,3671.1,3670.9,0.002]
[1754495997462,0.136,3671.6,3671.0,0.136]
[1754495997804,0.136,3671.1,3670.9,0.002]
[1754495998193,1.4066,3671.0,3670.9,0.002]
[1754495998973,31.4066,3671.0,3670.9,0.002]
[1754495999308,34.4066,3671.0,3670.9,0.002]
[1754495999470,37.13065339,3671.0,3670.9,0.002]
[1754496000730,34.4066,3671.0,3670.9,0.002]
[1754496000936,4.4066,3671.0,3670.9,0.002]
[1754496001109,34.4066,3671.0,3670.9,0.002]
[1754496002342,0.4392,3671.9,3670.9,0.4433]
[1754496002645,30.0,3671.8,3670.9,0.5793]
[1754496002801,0.136,3671.7,3670.9,0.4433]
[1754496002996,1.4066,3672.3,3671.2,0.136]
[1754496003195,1.4066,3672.3,3670.9,0.4433]
[1754496003196,0.136,3671.5,3670.9,0.002]
[1754496003422,4.555,3671.4,3670.9,0.138]
[1754496003633,4.555,3671.4,3671.0,1.4185]
[1754496003798,5.5224,3671.4,3670.9,0.002]
[1754496003992,31.4066,3671.3,3670.9,0.002]
[1754496004207,3.0,3671.1,3670.9,0.002]
[1754496004443,37.555,3671.0,3670.9,0.002]
[1754496004732,2.72464715,3670.2,3670.1,0.002]
[1754496005029,3.0,3670.0,3669.9,0.5]
[1754496005195,7.557,3670.0,3669.9,0.5]
[1754496005394,38.9636,3670.0,3669.9,0.5]
[1754496005594,38.9626,3670.0,3669.9,0.5]
[1754496005809,30.0,3670.0,3669.9,0.5]
[1754496006046,30.0,3670.1,3669.9,0.5]
[1754496006359,5.9616,3670.0,3669.9,0.5]
[1754496006563,11.68739564,3670.0,3669.9,0.5]
[1754496006851,8.9626,3670.0,3669.9,0.5]
[1754496007001,38.9626,3670.0,3669.9,0.5]
[1754496007544,34.4066,3670.0,3669.9,0.5]
[1754496007757,4.4066,3670.0,3669.9,0.5]
[1754496007898,3.0,3670.0,3669.9,0.5]
[1754496008218,4.556,3670.3,3669.9,0.5]
[1754496008427,30.0,3670.2,3669.9,0.5]
[1754496008625,4.556,3670.3,3669.9,0.5]
[1754496008954,4.556,3670.3,3670.0,3.70198279]
[1754496009154,4.556,3670.3,3670.1,2.72471243]
[1754496009513,4.556,3670.3,3670.0,0.9772]
[1754496009709,6.546,3671.4,3670.2,2.72464715]
[1754496009916,30.0,3671.3,3670.2,0.9772]
[1754496010109,0.9674,3671.2,3669.9,1.4772]
[1754496010343,30.0,3671.1,3670.1,0.55]
[1754496010524,4.551,3671.0,3670.2,1.44574647]
[1754496010843,6.546,3671.4,3670.8,2.72413715]
[1754496011047,4.551,3671.3,3670.6,0.9772]
[1754496011226,0.9674,3671.8,3670.6,0.9772]
[1754496011546,3.0,3671.6,3670.8,2.72412859]
[1754496011748,34.549,3671.7,3670.6,0.9772]
[1754496011749,4.549,3671.7,3670.6,0.9772]
[1754496011934,4.549,3671.7,3670.7,0.02724276]
[1754496012146,4.549,3671.7,3671.3,2.7238291]
[1754496012351,4.546,3671.6,3670.8,0.9772]
[1754496012537,4.546,3671.6,3671.3,2.72376046]
[1754496012967,4.546,3671.6,3670.8,0.9772]
[1754496013281,0.9674,3672.3,3671.4,2.72371317]
[1754496013427,30.0,3672.0,3671.4,2.72375214]
[1754496013623,30.0,3672.0,3671.3,0.9772]
[1754496013826,4.543,3672.1,3671.3,0.9772]
[1754496014023,4.543,3672.1,3671.3,3.70102116]
[1754496014457,0.9674,3672.0,3670.4,0.55]
[1754496014625,0.9674,3672.0,3670.6,0.55]
[1754496014820,0.9674,3672.0,3670.8,3.27418001]
[1754496015026,0.001,3672.1,3671.4,2.72375482]
[1754496015225,0.137,3672.1,3671.6,0.136]
[1754496015445,0.001,3672.1,3671.8,2.72339127]
[1754496015646,0.001,3672.1,3672.0,2.72331154]
[1754496015965,0.4402,3672.1,3671.9,0.136]
[1754496016262,0.4402,3672.1,3672.0,2.72331154]
[1754496016263,0.001,3672.1,3672.0,2.72331154]
[1754496016459,0.001,3672.1,3671.9,2.85936766]
[1754496016635,0.001,3672.1,3671.9,0.136]
[1754496016962,0.001,3672.1,3671.6,2.72354293]
[1754496016963,0.9674,3672.0,3671.6,2.72354955]
[1754496017135,0.9674,3672.0,3671.7,2.72350321]
[1754496017335,0.5762,3672.1,3671.6,2.85959455]
[1754496017525,0.9674,3672.0,3671.6,0.136]
[1754496017727,0.9674,3672.0,3671.6,2.85958025]
[1754496017927,0.137,3672.1,3671.8,2.7233947]
[1754496018239,0.137,3672.1,3671.6,1.1132]
[1754496018551,1.4066,3672.0,3670.9,5.5052]
[1754496018742,0.136,3671.9,3671.5,2.72368241]
[1754496019064,0.136,3671.9,3671.7,2.72351835]
[1754496019642,0.136,3671.9,3671.8,2.72345988]
[1754496019832,0.136,3671.9,3671.6,2.7235903]
[1754496020032,0.136,3671.9,3671.7,2.72352603]
[1754496020428,0.136,3671.9,3671.4,0.136]
[1754496020648,0.136,3671.9,3671.6,2.72359878]
[1754496021076,0.001,3672.1,3671.8,2.72345988]
[1754496021234,0.001,3672.1,3671.7,0.136]
[1754496021434,0.001,3672.1,3671.8,3.70485988]
[1754496021633,0.001,3672.1,3671.9,2.72331171]
[1754496022137,0.001,3672.1,3672.0,2.72331154]
[1754496022467,0.001,3672.1,3672.0,3.70471154]
[1754496022668,0.001,3672.1,3672.0,2.85931154]
[1754496023054,1.3825,3672.1,3671.4,2.72370461]
[1754496023405,1.3815,3672.0,3671.3,0.137]
[1754496023610,1.3815,3672.0,3670.8,0.9834]
[1754496023806,1.3815,3672.0,3671.4,2.72373879]
[1754496024306,1.3815,3672.0,3671.3,2.72380213]
[1754496024512,0.001,3672.1,3671.0,0.55]
[1754496024726,0.001,3672.1,3671.9,2.72338376]
[1754496024929,0.001,3672.1,3672.0,2.72331154]
[1754496025912,0.001,3672.1,3672.0,2.83245254]
[1754496027116,0.001,3672.1,3671.6,4.55]
[1754496027423,31.3815,3672.0,3671.0,0.109178]
[1754496027587,31.3815,3671.9,3671.0,0.109178]
[1754496027786,31.3815,3671.8,3670.8,0.002]
[1754496027992,0.001,3672.1,3671.1,2.72397918]
[1754496028215,30.0,3672.0,3671.6,2.72355995]
[1754496028525,30.9221,3672.0,3671.2,0.9814]
[1754496028699,0.001,3672.1,3671.7,2.72347306]
[1754496029024,0.001,3672.1,3671.6,2.72360823]
[1754496029223,0.001,3672.1,3671.7,2.72353205]
[1754496029633,0.001,3672.1,3671.2,5.5394]
[1754496029634,0.001,3672.1,3671.2,4.558]
[1754496029831,0.001,3672.1,3672.0,2.72331154]
[1754496031797,0.001,3672.1,3672.0,3.70471154]
[1754496032013,0.001,3672.1,3672.0,4.14601154]
[1754496032992,0.001,3672.1,3672.0,4.28201154]
[1754496033628,0.001,3672.1,3672.0,3.84071154]
[1754496034322,0.001,3672.1,3672.0,4.28201154]
[1754496034525,0.001,3672.1,3672.0,2.72331154]
[1754496035537,0.001,3672.1,3672.0,7.26031154]
[1754496037027,0.001,3672.1,3672.0,7.25931154]
[1754496037028,0.9231,3672.1,3672.0,7.25931154]
[1754496037228,0.9231,3672.1,3672.0,7.25231154]
[1754496037546,1.3825,3672.1,3671.8,0.818566]
[1754496037842,0.4594,3672.0,3671.8,0.818566]
[1754496038042,1.3815,3672.0,3671.8,0.818566]
[1754496038247,1.3815,3671.9,3671.8,0.818566]
[1754496038737,0.001,3672.1,3671.8,0.818566]
[1754496038941,0.001,3672.1,3671.8,3.54201691]
[1754496039124,0.9231,3672.1,3671.8,0.818566]
[1754496039324,1.3815,3672.0,3671.8,0.818566]
[1754496039524,0.4594,3672.0,3671.8,0.818566]
[1754496039824,0.9221,3672.0,3671.8,0.818566]
[1754496040017,0.001,3672.1,3671.8,0.818566]
[1754496040339,0.001,3672.1,3672.0,2.72331154]
[1754496040743,0.001,3672.5,3672.4,2.72301492]
[1754496040911,0.001,3672.5,3672.4,8.67571492]
[1754496041440,0.001,3672.5,3672.4,8.23441492]
[1754496041750,0.001,3672.5,3672.4,2.72301492]
[1754496041949,1.3825,3672.5,3672.4,7.25001492]
[1754496042150,0.001,3672.5,3672.4,7.25001492]
[1754496044520,0.001,3672.5,3672.4,7.38601492]
[1754496044922,0.001,3672.5,3672.4,0.136]
[1754496045118,0.001,3672.5,3672.3,4.517]
[1754496045119,1.3825,3672.5,3672.3,4.517]
[1754496045318,1.3815,3672.4,3672.3,4.515]
[1754496046357,0.001,3672.5,3672.4,2.72301492]
[1754496046720,0.001,3672.5,3672.4,2.85901492]
[1754496047221,0.001,3672.5,3672.4,3.84041492]
[1754496048353,0.001,3672.5,3672.4,3.94953092]
[1754496049243,0.001,3672.5,3672.4,4.39083092]
[1754496050224,0.001,3672.5,3672.4,3.94953092]
[1754496050759,0.001,3672.5,3672.4,2.96813092]
[1754496052319,0.001,3672.5,3672.4,7.46113092]
[1754496052755,0.001,3672.5,3672.4,8.34683092]
[1754496053392,0.001,3672.5,3672.4,8.34383092]
[1754496054526,0.001,3672.5,3672.4,7.45813092]
[1754496055863,0.001,3672.5,3672.4,8.00813092]
[1754496059276,0.001,3672.5,3672.4,8.89383092]
[1754496060277,0.001,3672.5,3672.4,8.00813092]
[1754496060576,0.001,3672.5,3672.4,7.43713092]
[1754496061445,0.001,3672.5,3672.4,8.87283092]
[1754496061874,0.001,3672.5,3672.4,9.30043092]
[1754496062074,0.001,3672.5,3672.4,7.98713092]
[1754496062577,0.001,3672.5,3672.4,9.30043092]
[1754496063398,0.001,3672.5,3672.4,8.87283092]
[1754496063580,0.001,3672.5,3672.4,3.51813092]
[1754496063783,0.001,3672.5,3672.4,7.97913092]
[1754496065804,1.3524,3672.5,3672.4,0.109116]
[1754496066155,1.3524,3672.5,3670.8,9.35232853]
[1754496066156,33.0,3672.4,3670.8,0.002]
[1754496066349,33.0,3672.4,3672.0,0.818584]
[1754496066350,30.0,3672.3,3672.0,0.818584]
[1754496066554,31.3514,3672.3,3671.9,4.456]
[1754496066749,3.0,3672.4,3671.9,4.456]
[1754496066750,1.3514,3672.2,3671.9,4.456]
[1754496066980,3.0,3672.4,3671.9,4.456]
[1754496066981,1.3514,3672.1,3671.9,4.456]
[1754496067285,1.3514,3672.0,3671.9,4.456]
[1754496070290,1.3514,3672.0,3671.9,4.45]
[1754496070786,1.3514,3672.0,3671.8,0.818662]
[1754496070974,0.001,3672.5,3671.9,4.446]
[1754496071180,30.0,3672.4,3671.9,4.446]
[1754496071357,30.0,3672.4,3671.8,5.261662]
[1754496071555,1.3514,3672.3,3671.8,4.443]
[1754496071786,1.3514,3672.2,3671.8,4.443]
[1754496071988,1.3514,3672.1,3671.8,4.443]
[1754496072154,0.001,3672.5,3671.8,4.443]
[1754496072353,1.3514,3672.0,3671.8,4.443]
[1754496072590,0.001,3672.5,3671.9,0.002]
[1754496072754,30.0,3672.4,3671.9,0.002]
[1754496073181,1.3514,3672.3,3671.9,0.002]
[1754496073658,0.001,3672.5,3672.1,2.72316369]
[1754496073992,0.001,3672.5,3671.9,2.72532879]
[1754496073993,0.001,3672.5,3672.4,2.72301492]
[1754496074309,0.001,3672.5,3672.3,4.442]
[1754496074590,1.3524,3672.5,3672.4,2.72301492]
[1754496074953,1.3524,3672.5,3672.3,7.16505584]
[1754496075151,1.3524,3672.5,3672.3,7.16503924]
[1754496075354,1.3524,3672.5,3672.4,2.72301492]
[1754496075589,1.3524,3672.5,3672.3,7.16506181]
[1754496075762,1.3524,3672.5,3672.4,0.136]
[1754496076186,1.3524,3672.5,3672.3,4.442]
[1754496076385,0.001,3672.5,3672.3,4.442]
[1754496076591,0.001,3672.5,3672.4,2.72301492]
[1754496076777,0.001,3672.5,3672.4,4.61354506]
[1754496077167,0.001,3672.5,3672.4,4.58631492]
[1754496077361,0.001,3672.5,3672.4,4.61354506]
[1754496077788,0.001,3672.5,3672.4,9.15665606]
[1754496077995,0.001,3672.5,3672.4,9.12942592]
[1754496078291,0.001,3672.5,3672.4,3.38212592]
[1754496078498,0.001,3672.5,3672.4,7.81612592]
[1754496079762,0.001,3672.5,3672.4,8.70182592]
[1754496080195,0.001,3672.5,3672.4,9.12942592]
[1754496080398,0.001,3672.5,3672.4,8.70182592]
[1754496080976,0.001,3672.5,3672.4,9.27912592]
[1754496081714,0.001,3672.5,3672.4,8.83782592]
[1754496081865,0.001,3672.5,3672.4,7.94212592]
[1754496083446,0.001,3672.5,3672.4,3.51812592]
[1754496083777,0.001,3672.5,3672.4,7.93812592]
[1754496084113,1.3283,3672.5,3672.4,0.245111]
[1754496084602,1.3283,3672.5,3672.4,2.96812592]
[1754496084790,1.3283,3672.5,3672.4,7.38812592]
[1754496084994,0.001,3672.5,3672.4,7.93812592]
[1754496085306,0.001,3672.5,3672.4,8.87072592]
[1754496085803,0.001,3672.5,3672.4,9.31202592]
[1754496085978,0.001,3672.6,3672.5,2.72294077]
[1754496086184,0.001,3672.6,3672.5,4.64684077]
[1754496086976,1e-08,3672.6,3672.5,4.67407017]
[1754496087581,1e-08,3672.9,3672.8,3.27271836]
[1754496087784,1e-08,3672.9,3672.8,7.85194554]
[1754496087993,1e-08,3672.9,3672.8,7.82471836]
[1754496088289,1e-08,3672.9,3672.8,9.19861836]
[1754496088489,6.57323912,3673.9,3673.8,3.27197724]
[1754496088722,6.57323912,3673.9,3673.8,9.06187724]
[1754496089012,6.57323912,3673.9,3673.8,9.19787724]
[1754496090696,0.74004591,3673.9,3673.8,9.19787724]
[1754496092219,0.001,3674.7,3674.6,3.27138464]
[1754496092426,0.001,3674.7,3674.6,7.68638464]
[1754496092596,0.001,3674.7,3674.6,7.82238464]
[1754496092800,0.001,3674.7,3674.6,3.40738464]
[1754496093018,0.001,3674.7,3674.6,7.82238464]
[1754496093385,2.50104414,3674.9,3674.8,3.27123652]
[1754496093582,2.50104414,3674.9,3674.8,7.68623652]
[1754496093789,1.63234414,3674.9,3674.8,7.82223652]
[1754496094617,1.63234414,3674.9,3674.8,5.101]
[1754496094924,2.95964414,3674.9,3674.8,4.55]
[1754496095228,2.95964414,3674.9,3674.8,0.136]
[1754496095599,2.95964414,3674.9,3674.8,4.55]
[1754496096024,1.63234414,3674.9,3674.8,7.95311352]
[1754496096234,1.63234414,3674.9,3674.8,8.63911352]
[1754496097529,0.04,3675.9,3675.4,3.27079229]
[1754496097691,0.04,3675.9,3674.8,5.04901352]
[1754496097692,0.9087,3675.9,3674.8,2.327777]
[1754496098029,2.0986,3675.5,3675.4,2.85679229]
[1754496098228,2.0986,3675.5,3675.4,7.27079229]
[1754496098463,2.9673,3675.5,3675.4,7.27079229]
[1754496098613,2.9673,3675.5,3675.4,0.136]
[1754496098927,2.9673,3675.5,3675.4,4.55]
[1754496099226,2.9673,3675.5,3675.4,7.27079229]
[1754496099433,2.5087,3675.5,3675.4,7.27079229]
[1754496099601,1.64,3675.5,3675.4,7.82079229]
[1754496100234,1.64,3675.5,3675.4,7.26979229]
[1754496100916,2.5087,3675.5,3675.4,2.85679229]
[1754496101106,2.9673,3675.5,3675.4,7.26979229]
[1754496101427,2.9673,3675.5,3675.4,0.136]
[1754496101996,2.9673,3675.5,3675.3,2.72086567]
[1754496102194,1.64,3675.5,3675.4,7.26979229]
[1754496102619,2.9673,3675.5,3675.4,7.26979229]
[1754496102806,1.64,3675.5,3675.4,7.81979229]
[1754496103593,1.64,3675.5,3675.4,8.75239229]
[1754496105320,1.64,3675.5,3675.4,7.81979229]
[1754496105525,2.9673,3675.5,3675.4,7.81979229]
[1754496105745,1.64,3675.5,3675.4,7.81979229]
[1754496106041,2.9673,3675.5,3675.4,7.26979229]
[1754496106341,1.64,3675.5,3675.4,7.26979229]
[1754496107142,1.64,3675.5,3675.4,7.68379229]
[1754496107347,1.64,3675.5,3675.4,4.33939229]
[1754496107645,1.64,3675.5,3675.4,7.81879229]
[1754496108311,1.64,3675.5,3675.4,8.63640229]
[1754496108811,2.5087,3675.5,3675.4,8.63640229]
[1754496109014,2.5087,3675.5,3675.4,8.62895229]
[1754496109329,1.64,3675.5,3675.4,8.62895229]
[1754496110437,1.64,3675.5,3675.4,9.56155229]
[1754496111031,1.64,3675.5,3675.4,8.62895229]
[1754496111221,1.64,3675.5,3675.4,9.54385229]
[1754496111455,1.63034189,3675.5,3675.4,9.54385229]
[1754496111748,1.63034189,3675.5,3675.4,8.62895229]
[1754496114265,0.46445252,3676.0,3675.9,3.2704222]
[1754496114466,0.03295252,3676.0,3675.9,7.6814222]
[1754496114617,8.39496562,3676.1,3676.0,2.7203482]
[1754496114818,8.39496562,3676.1,3676.0,3.2703482]
[1754496115042,1e-08,3676.1,3676.0,3.2703482]
[1754496115252,1e-08,3676.1,3676.0,3.29755168]
[1754496117023,1e-08,3676.1,3676.0,3.2703482]
[1754496118227,1e-08,3676.1,3676.0,4.6265482]
[1754496118766,1e-08,3676.1,3676.0,4.1852482]
[1754496120666,1e-08,3676.1,3676.0,3.2703482]
[1754496120964,1e-08,3676.1,3676.0,14.70690989]
[1754496121166,1.64,3677.3,3676.0,14.70690989]
[1754496121366,1.64,3677.3,3677.2,3.40546045]
[1754496121567,1.64,3677.3,3677.2,7.81446045]
[1754496121771,2.5164,3677.3,3677.2,7.81446045]
[1754496122074,2.9479,3677.3,3677.2,7.81446045]
[1754496122269,1.64,3677.3,3677.2,7.81446045]
[1754496122660,2.5164,3677.3,3677.2,7.81446045]
[1754496122854,2.9479,3677.3,3677.2,8.63171945]
[1754496123061,2.9479,3677.3,3677.2,4.22271945]
[1754496123372,2.9479,3677.3,3677.2,8.63171945]
[1754496124079,1.64,3677.3,3677.2,8.63171945]
[1754496124436,1.64,3677.3,3677.2,9.54661945]
[1754496124770,1e-08,3677.3,3677.2,5.13761945]
[1754496125083,1e-08,3677.3,3677.2,9.54561945]
[1754496126180,1e-08,3677.3,3677.2,8.63071945]
[1754496126341,1e-08,3677.3,3677.2,4.22271945]
[1754496126541,0.87640001,3677.3,3677.2,8.63071945]
[1754496126742,1e-08,3677.3,3677.2,8.63071945]
[1754496126938,1.30790001,3677.3,3677.2,8.63071945]
[1754496127143,1.30790001,3677.3,3677.2,4.22271945]
[1754496127341,1e-08,3677.3,3677.2,8.62971945]
[1754496127783,1e-08,3677.3,3677.2,20.06628114]
[1754496127968,1e-08,3677.3,3677.2,21.42248114]
[1754496128145,0.04,3677.9,3677.8,2.7190168]
[1754496128340,0.04,3677.9,3677.8,7.6760168]
[1754496128559,1.3479,3677.9,3677.8,7.2620168]
[1754496129591,1.3479,3677.9,3677.8,2.8550168]
[1754496129805,1.3479,3677.9,3677.8,7.2620168]
[1754496130013,1.3479,3677.9,3677.8,2.8550168]
[1754496130212,1.3479,3677.9,3677.8,7.2610168]
[1754496130379,1.3479,3677.9,3677.8,7.8110168]
[1754496130380,0.04,3677.9,3677.8,7.8110168]
[1754496130574,1.3479,3677.9,3677.8,7.8110168]
[1754496130790,1.3479,3677.9,3677.8,7.6750168]
[1754496131012,1.3479,3677.9,3677.8,7.8110168]
[1754496131315,0.04,3677.9,3677.8,7.8110168]
[1754496132079,0.04,3677.9,3677.8,8.7259168]
[1754496132331,0.04,3677.9,3677.8,7.8110168]
[1754496132906,0.04,3677.9,3677.8,8.7259168]
[1754496133616,0.04,3677.9,3677.8,7.8100168]
[1754496134696,0.04,3677.9,3677.8,3.4050168]
[1754496135035,1.3479,3677.9,3677.8,3.6720958]
[1754496135345,1.3479,3677.9,3677.8,8.0770958]
[1754496135494,1.3479,3677.9,3677.8,0.817079]
[1754496135693,1.3479,3677.9,3677.8,0.342079]
[1754496136094,1.3479,3677.9,3677.1,4.404]
[1754496136290,1.3079,3677.8,3677.2,3.53671275]
[1754496136505,1.3079,3677.7,3677.2,0.817324]
[1754496136702,0.04,3677.9,3677.2,0.817324]
[1754496136703,1.3079,3677.6,3677.2,0.817324]
[1754496136927,1.3079,3677.5,3677.2,0.817324]
[1754496137154,0.04,3677.9,3677.2,0.817324]
[1754496137155,0.04,3677.9,3677.8,2.7190168]
[1754496137290,1.54,3678.0,3677.9,2.71894287]
[1754496137810,2.8479,3678.0,3677.9,2.71894287]
[1754496138019,1.54,3678.0,3677.9,2.76894287]
[1754496138233,2.4164,3678.0,3677.9,2.76894287]
[1754496138546,1.54,3678.0,3677.9,7.17294287]
[1754496139413,1.54,3678.0,3677.9,8.54434287]
[1754496140013,1.54,3678.0,3677.9,7.17294287]
[1754496140713,2.4164,3678.0,3677.9,2.21894287]
[1754496140913,2.8479,3678.0,3677.9,2.21894287]
[1754496141226,2.8479,3678.0,3677.9,2.71894287]
[1754496141427,2.8479,3678.0,3677.9,7.12194287]
[1754496141617,2.8479,3678.0,3677.9,2.71894287]
[1754496141814,1.54,3678.0,3677.9,7.12194287]
[1754496142013,1.54,3678.0,3677.9,7.67194287]
[1754496142927,2.4532,3678.0,3677.9,2.71894287]
[1754496143125,2.4532,3678.0,3677.9,7.12194287]
[1754496143126,2.9161,3678.0,3677.9,7.12194287]
[1754496143340,2.9161,3678.0,3676.4,0.4361]
[1754496143515,2.9161,3678.0,3676.2,2.7201657]
[1754496143516,1.3761,3677.9,3677.8,0.817314]
[1754496144063,1.3761,3677.9,3676.4,2.72001665]
[1754496144064,1.3761,3677.9,3677.1,2.71951788]
[1754496144230,1.3761,3677.8,3677.0,4.403]
[1754496144425,1.54,3678.0,3677.9,2.71894287]
[1754496144849,1.54,3678.0,3677.9,7.12194287]
[1754496145051,1.54,3678.0,3677.9,7.67194287]
[1754496145453,2.4532,3678.0,3677.9,7.12194287]
[1754496145628,2.4532,3678.0,3677.9,7.25794287]
[1754496145829,1.54,3678.0,3677.9,7.25794287]
[1754496146365,1.54,3678.0,3677.9,8.58714287]
[1754496146729,1.54,3678.0,3677.9,9.00114287]
[1754496146932,6.93669213,3678.4,3678.3,2.7186472]
[1754496147131,6.93669213,3678.4,3678.3,9.0008472]
[1754496147378,6.93669213,3678.4,3678.3,9.1368472]
[1754496147867,1.64,3678.6,3678.5,2.71849938]
[1754496148171,1.64,3678.6,3678.5,3.26849938]
[1754496148371,0.04,3678.9,3678.6,3.26842548]
[1754496148544,1e-08,3678.7,3678.6,2.71842548]
[1754496148753,1e-08,3678.7,3678.6,7.28360973]
[1754496148953,1e-08,3678.7,3678.6,7.25642548]
[1754496149549,1e-08,3678.7,3678.6,7.80642548]
[1754496149760,1e-08,3678.7,3678.6,9.13562548]
[1754496150964,1e-08,3678.7,3678.6,7.80642548]
[1754496151189,1e-08,3678.7,3678.6,9.13562548]
[1754496151489,1.64,3679.2,3679.1,2.71805604]
[1754496151649,1.64,3679.2,3679.1,7.11905604]
[1754496151851,2.5532,3679.2,3679.1,7.25505604]
[1754496152052,2.5532,3679.2,3679.1,2.85405604]
[1754496152269,3.0161,3679.2,3679.1,7.25505604]
[1754496152481,1.64,3679.2,3679.1,7.25505604]
[1754496153893,1.64,3679.2,3679.1,8.07184604]
[1754496154478,2.5532,3679.2,3679.1,8.07184604]
[1754496154680,1.64,3679.2,3679.1,8.07184604]
[1754496154907,2.5532,3679.2,3679.1,5.35279]
[1754496155050,2.5532,3679.2,3679.1,0.95279]
[1754496155256,3.0161,3679.2,3679.1,5.35279]
[1754496156588,3.0161,3679.2,3679.1,0.95279]
[1754496156987,3.0161,3679.2,3678.7,4.536]
[1754496157194,3.0161,3679.2,3677.6,2.71911621]
[1754496157195,1.3761,3679.1,3677.4,3.61240755]
[1754496157359,1.3761,3679.0,3678.9,0.81706]
[1754496157561,0.136,3679.1,3678.6,4.536]
[1754496157750,1.3761,3678.9,3678.7,0.817099]
[1754496157954,0.136,3679.1,3678.7,0.817099]
[1754496157955,1.3761,3678.8,3678.7,0.817099]
[1754496159312,1.3761,3678.8,3678.6,0.136]
[1754496159625,1.3761,3678.7,3678.5,0.136]
[1754496159911,1.3761,3678.6,3678.3,0.136]
[1754496160411,1.3761,3678.5,3678.3,0.136]
[1754496160595,0.136,3678.8,3678.1,4.4]
[1754496160778,1.3761,3678.4,3678.2,0.136]
[1754496160980,1.3761,3678.3,3678.2,0.136]
[1754496161195,0.9132,3678.3,3678.2,0.136]
[1754496161395,1.3761,3678.3,3678.2,0.136]
[1754496161783,0.9132,3678.3,3678.2,2.85472111]
[1754496162117,4.09481623,3678.3,3677.5,0.817165]
[1754496162452,34.3761,3678.2,3677.6,2.71911468]
[1754496162585,3.0,3678.3,3677.5,0.817165]
[1754496162781,3.0,3678.3,3676.8,0.8931]
[1754496162782,11.43656169,3678.0,3676.6,2.7198864]
[1754496163116,3.0,3677.7,3676.2,2.72012699]
[1754496163335,44.09426838,3677.6,3676.0,4.399]
[1754496163484,3.0,3677.4,3676.1,4.399]
[1754496163699,3.0,3677.2,3676.5,2.71994498]
[1754496163889,1.3761,3677.3,3676.2,3.61328966]
[1754496164231,1.3761,3677.3,3676.3,1.3292]
[1754496164377,3.0,3677.6,3675.6,0.552]
[1754496164378,30.9132,3677.2,3675.6,0.002]
[1754496164577,33.0,3677.1,3676.3,2.72008198]
[1754496164817,33.0,3677.1,3676.2,4.399]
[1754496164818,4.3761,3677.1,3676.2,4.399]
[1754496165020,0.4629,3677.1,3676.6,2.71985442]
[1754496165200,1.3761,3677.0,3676.2,8.01229547]
[1754496165394,3.0,3677.6,3676.3,7.11912547]
[1754496165395,1.3761,3676.9,3676.3,7.11912547]
[1754496165600,1.3761,3676.9,3676.6,2.7198595]
[1754496165803,0.9132,3676.8,3676.4,2.72004483]
[1754496166004,1.3761,3676.8,3676.6,2.71986643]
[1754496166389,1.3761,3676.7,3676.2,4.4]
[1754496166584,1.3761,3676.6,3676.0,2.72028917]
[1754496166892,1.3761,3676.5,3675.9,0.002]
[1754496167322,1.3761,3676.4,3675.9,0.002]
[1754496167799,2.72032848,3676.1,3675.9,0.002]
[1754496168124,35.7203482,3676.0,3675.9,0.002]
[1754496168332,39.9761,3676.0,3675.9,0.002]
[1754496168499,39.5132,3676.0,3675.9,0.002]
[1754496168697,39.9761,3676.0,3675.9,0.002]
[1754496169499,4.3761,3676.0,3675.9,0.002]
[1754496170019,1.3761,3676.0,3675.9,0.002]
[1754496170419,0.9132,3676.0,3675.9,2.7224222]
[1754496170716,0.4629,3676.5,3675.9,0.002]
[1754496170916,0.9132,3676.4,3675.9,0.002]
[1754496171119,0.9132,3676.4,3676.2,0.002]
[1754496171508,39.9386,3676.3,3675.9,0.002]
[1754496171722,33.0,3676.2,3675.9,0.002]
[1754496171897,3.0,3676.0,3675.9,0.002]
[1754496172224,37.4,3676.0,3675.6,0.002]
[1754496172521,0.136,3675.7,3675.6,0.002]
[1754496172828,33.136,3675.7,3675.6,0.002]
[1754496173320,38.8746,3675.7,3675.6,0.002]
[1754496173629,3.0,3675.7,3675.6,0.002]
[1754496173933,1.4746,3675.7,3675.6,0.002]
[1754496174446,31.4746,3675.7,3675.6,0.002]
[1754496174599,1.4746,3675.7,3675.6,0.002]
[1754496174998,34.4746,3675.7,3675.6,0.002]
[1754496175405,0.136,3675.7,3675.6,0.002]
[1754496175641,0.136,3675.8,3675.6,2.72258304]
[1754496175940,0.001,3678.3,3675.7,1.4094]
[1754496175941,0.9076,3677.1,3675.7,1.4094]
[1754496176107,0.9076,3676.8,3676.0,2.72030011]
[1754496176290,0.9076,3676.8,3675.7,1.4094]
[1754496176822,30.9076,3676.7,3675.6,0.002]
[1754496177020,3.0,3676.5,3675.6,0.002]
[1754496177189,3.0,3676.3,3675.6,0.002]
[1754496177402,3.0,3676.1,3675.6,0.002]
[1754496177598,34.401,3676.0,3675.6,0.002]
[1754496177931,33.0,3675.9,3675.6,0.002]
[1754496178130,3.0,3675.7,3675.6,0.002]
[1754496178330,33.0,3675.7,3675.6,0.002]
[1754496178499,39.9386,3675.7,3675.6,0.002]